[Event "Titled Tuesday Blitz June 20 Early 2023"]
[White "Taboas Rodriguez, Daniel"]
[Black "Vargas Rodriguez, Wilver"]
[WhiteFideId "2208466"]
[BlackFideId "3509672"]
[WhiteElo "2365"]
[BlackElo "2245"]
[Result "1-0"]
[Round "1"]
[TimeControl "180+2"]
[Date "2023.06.20"]
[WhiteClock "0:00:40"]
[BlackClock "0:00:04"]
[Board "217"]

1. d4 {[%clk 0:02:59]}  Nf6 {[%clk 0:02:59]} 2. Nf3 {[%clk 0:02:58]}  e6 {[%clk 0:02:55]} 3. c4 {[%clk 0:02:58]}  d5 {[%clk 0:02:55]} 4. Nc3 {[%clk 0:02:59]}  dxc4 {[%clk 0:02:31]} 5. e3 {[%clk 0:02:56]}  c5 {[%clk 0:02:21]} 6. Bxc4 {[%clk 0:02:56]}  cxd4 {[%clk 0:02:16]} 7. exd4 {[%clk 0:02:57]}  Bb4 {[%clk 0:02:11]} 8. O-O {[%clk 0:02:53]}  Bxc3 {[%clk 0:02:08]} 9. bxc3 {[%clk 0:02:53]}  Qc7 {[%clk 0:02:07]} 10. Qe2 {[%clk 0:02:48]}  O-O {[%clk 0:01:51]} 11. Bg5 {[%clk 0:02:46]}  Nd5 {[%clk 0:01:50]} 12. Rac1 {[%clk 0:02:45]}  Nc6 {[%clk 0:01:34]} 13. Bd3 {[%clk 0:02:43]}  Nf4 {[%clk 0:01:21]} 14. Bxf4 {[%clk 0:02:42]}  Qxf4 {[%clk 0:01:22]} 15. Rfe1 {[%clk 0:02:36]}  b6 {[%clk 0:01:12]} 16. g3 {[%clk 0:02:15]}  Qh6 {[%clk 0:01:02]} 17. h4 {[%clk 0:02:08]}  Bb7 {[%clk 0:00:56]} 18. Ng5 {[%clk 0:02:09]}  g6 {[%clk 0:00:51]} 19. Ne4 {[%clk 0:02:01]}  Qg7 {[%clk 0:00:41]} 20. Nd6 {[%clk 0:01:58]}  Rab8 {[%clk 0:00:28]} 21. Nxb7 {[%clk 0:01:15]}  Rxb7 {[%clk 0:00:27]} 22. Kg2 {[%clk 0:01:15]}  Rc7 {[%clk 0:00:27]} 23. h5 {[%clk 0:01:13]}  Rfc8 {[%clk 0:00:15]} 24. Qe3 {[%clk 0:01:05]}  Ne7 {[%clk 0:00:09]} 25. c4 {[%clk 0:00:54]}  Nf5 {[%clk 0:00:07]} 26. Bxf5 {[%clk 0:00:54]}  gxf5 {[%clk 0:00:05]} 27. c5 {[%clk 0:00:49]}  bxc5 {[%clk 0:00:05]} 28. dxc5 {[%clk 0:00:50]}  Qf8 {[%clk 0:00:04]} 29. h6 {[%clk 0:00:44]}  f6 {[%clk 0:00:03]} 30. Qxe6+ {[%clk 0:00:44]}  Qf7 {[%clk 0:00:03]} 31. Qxf5 {[%clk 0:00:42]}  Kf8 {[%clk 0:00:04]} 32. c6 {[%clk 0:00:40]}  Rxc6 {[%clk 0:00:02]} 33. Qxc8+ {[%clk 0:00:40]}  Rxc8 {[%clk 0:00:02]} 34. Rxc8+ {[%clk 0:00:41]}  Qe8 {[%clk 0:00:02]} 35. Rcxe8+ {[%clk 0:00:41]}  Kf7 {[%clk 0:00:03]} 36. R8e7+ {[%clk 0:00:39]}  Kg6 {[%clk 0:00:04]} 37. Rxa7 {[%clk 0:00:40]} 1-0


[Site "https://www.chess.com"]

[Event "Titled Tuesday Blitz June 20 Early 2023"]
[White "Shubenkova, Veronika"]
[Black "Winkels, Marcel"]
[WhiteFideId "44124040"]
[BlackFideId "1003887"]
[WhiteElo "2060"]
[BlackElo "1900"]
[Result "1-0"]
[Round "1"]
[TimeControl "180+2"]
[Date "2023.06.20"]
[WhiteClock "0:02:45"]
[BlackClock "0:00:00"]
[Board "221"]

1. e4 {[%clk 0:02:58]}  c5 {[%clk 0:02:59]} 2. Nc3 {[%clk 0:02:58]}  d6 {[%clk 0:02:59]} 3. g3 {[%clk 0:02:59]}  Nc6 {[%clk 0:02:57]} 4. Bg2 {[%clk 0:02:59]}  g6 {[%clk 0:02:57]} 5. d3 {[%clk 0:03:00]}  Bg7 {[%clk 0:02:58]} 6. f4 {[%clk 0:03:01]}  e6 {[%clk 0:02:57]} 7. Nf3 {[%clk 0:03:01]}  Nge7 {[%clk 0:02:58]} 8. O-O {[%clk 0:03:02]}  O-O {[%clk 0:02:58]} 9. Rb1 {[%clk 0:03:03]}  Nd4 {[%clk 0:02:52]} 10. Ne2 {[%clk 0:03:02]}  Rb8 {[%clk 0:02:46]} 11. c3 {[%clk 0:03:01]}  Nxf3+ {[%clk 0:02:45]} 12. Bxf3 {[%clk 0:03:01]}  b5 {[%clk 0:02:42]} 13. Be3 {[%clk 0:03:01]}  b4 {[%clk 0:02:40]} 14. Qd2 {[%clk 0:02:59]}  a5 {[%clk 0:02:38]} 15. g4 {[%clk 0:02:58]}  f5 {[%clk 0:02:37]} 16. h3 {[%clk 0:02:58]}  Ba6 {[%clk 0:02:18]} 17. c4 {[%clk 0:02:57]}  Bb7 {[%clk 0:02:07]} 18. Ng3 {[%clk 0:02:56]}  Qd7 {[%clk 0:02:04]} 19. gxf5 {[%clk 0:02:55]}  exf5 {[%clk 0:01:46]} 20. Kh2 {[%clk 0:02:56]}  Bc6 {[%clk 0:01:38]} 21. Rf2 {[%clk 0:02:55]}  Qb7 {[%clk 0:01:37]} 22. Rg1 {[%clk 0:02:54]}  Kh8 {[%clk 0:01:34]} 23. h4 {[%clk 0:02:54]}  Rg8 {[%clk 0:01:25]} 24. Rfg2 {[%clk 0:02:54]}  Bf6 {[%clk 0:01:23]} 25. h5 {[%clk 0:02:53]}  Bh4 {[%clk 0:01:15]} 26. Kh3 {[%clk 0:02:52]}  Bxg3 {[%clk 0:01:10]} 27. Rxg3 {[%clk 0:02:52]}  fxe4 {[%clk 0:01:10]} 28. dxe4 {[%clk 0:02:51]}  Bxe4 {[%clk 0:01:05]} 29. Qxd6 {[%clk 0:02:48]}  Bxf3 {[%clk 0:00:44]} 30. Qf6+ {[%clk 0:02:47]}  Rg7 {[%clk 0:00:43]} 31. h6 {[%clk 0:02:47]}  Nf5 {[%clk 0:00:39]} 32. hxg7+ {[%clk 0:02:46]}  Qxg7 {[%clk 0:00:36]} 33. Qxg7+ {[%clk 0:02:43]}  Kxg7 {[%clk 0:00:28]} 34. Rxf3 {[%clk 0:02:44]}  Rc8 {[%clk 0:00:15]} 35. b3 {[%clk 0:02:44]}  a4 {[%clk 0:00:14]} 36. Bc1 {[%clk 0:02:44]}  axb3 {[%clk 0:00:14]} 37. axb3 {[%clk 0:02:45]}  Rb8 {[%clk 0:00:12]} 38. Bb2+ {[%clk 0:02:45]}  Kf7 {[%clk 0:00:11]} 39. Rd3 {[%clk 0:02:45]}  Re8 {[%clk 0:00:00]} 40. Be5 {[%clk 0:02:45]} 1-0


[Site "https://www.chess.com"]

[Event "Titled Tuesday Blitz June 20 Early 2023"]
[White "Brown, Raehanna"]
[Black "Ince, Taylan Ruzgar"]
[WhiteFideId "7402740"]
[BlackFideId "44513089"]
[WhiteElo "1655"]
[BlackElo "2147"]
[Result "0-1"]
[Round "1"]
[TimeControl "180+2"]
[Date "2023.06.20"]
[WhiteClock "0:00:00"]
[BlackClock "0:00:16"]
[Board "222"]

1. c4 {[%clk 0:02:59]}  Nf6 {[%clk 0:02:58]} 2. Nc3 {[%clk 0:02:56]}  e5 {[%clk 0:02:58]} 3. Nf3 {[%clk 0:02:55]}  Nc6 {[%clk 0:02:58]} 4. g3 {[%clk 0:02:54]}  Bb4 {[%clk 0:02:56]} 5. Bg2 {[%clk 0:02:52]}  O-O {[%clk 0:02:55]} 6. O-O {[%clk 0:02:47]}  Bxc3 {[%clk 0:02:55]} 7. bxc3 {[%clk 0:02:47]}  d6 {[%clk 0:02:54]} 8. d3 {[%clk 0:02:46]}  h6 {[%clk 0:02:51]} 9. e4 {[%clk 0:02:42]}  Ne7 {[%clk 0:02:15]} 10. h3 {[%clk 0:02:38]}  Ng6 {[%clk 0:02:13]} 11. Kh2 {[%clk 0:02:36]}  Nh7 {[%clk 0:02:09]} 12. Ng1 {[%clk 0:02:27]}  c6 {[%clk 0:02:06]} 13. f4 {[%clk 0:02:23]}  f5 {[%clk 0:02:05]} 14. Qh5 {[%clk 0:02:06]}  Qe8 {[%clk 0:01:51]} 15. fxe5 {[%clk 0:01:56]}  Nxe5 {[%clk 0:01:04]} 16. Qe2 {[%clk 0:01:07]}  fxe4 {[%clk 0:01:02]} 17. Rxf8+ {[%clk 0:01:06]}  Qxf8 {[%clk 0:01:01]} 18. Bxe4 {[%clk 0:01:05]}  Nf6 {[%clk 0:01:01]} 19. Bg2 {[%clk 0:01:01]}  Bf5 {[%clk 0:00:58]} 20. d4 {[%clk 0:00:46]}  Nd3 {[%clk 0:00:54]} 21. Ba3 {[%clk 0:00:40]}  Re8 {[%clk 0:00:54]} 22. Qd2 {[%clk 0:00:36]}  Qe7 {[%clk 0:00:33]} 23. Rf1 {[%clk 0:00:34]}  Bg6 {[%clk 0:00:31]} 24. Nf3 {[%clk 0:00:14]}  c5 {[%clk 0:00:26]} 25. dxc5 {[%clk 0:00:12]}  dxc5 {[%clk 0:00:26]} 26. Nh4 {[%clk 0:00:10]}  Bh7 {[%clk 0:00:26]} 27. Bd5+ {[%clk 0:00:07]}  Nxd5 {[%clk 0:00:24]} 28. cxd5 {[%clk 0:00:07]}  Qe2+ {[%clk 0:00:24]} 29. Qxe2 {[%clk 0:00:06]}  Rxe2+ {[%clk 0:00:25]} 30. Kg1 {[%clk 0:00:05]}  b6 {[%clk 0:00:24]} 31. Nf3 {[%clk 0:00:00]}  Be4 {[%clk 0:00:16]} 0-1


[Site "https://www.chess.com"]

[Event "Titled Tuesday Blitz June 20 Early 2023"]
[White "Tsukerman, Julia"]
[Black "Turzo, Attila"]
[WhiteFideId "2621649"]
[BlackFideId "704954"]
[WhiteElo "1667"]
[BlackElo "2534"]
[Result "1-0"]
[Round "1"]
[TimeControl "180+2"]
[Date "2023.06.20"]
[WhiteClock "0:00:02"]
[BlackClock "0:00:00"]
[Board "228"]

1. e4 {[%clk 0:02:58]}  d6 {[%clk 0:03:00]} 2. d4 {[%clk 0:02:58]}  Nf6 {[%clk 0:03:01]} 3. Nc3 {[%clk 0:02:57]}  g6 {[%clk 0:03:01]} 4. Be3 {[%clk 0:02:57]}  Bg7 {[%clk 0:03:01]} 5. f3 {[%clk 0:02:58]}  c6 {[%clk 0:03:02]} 6. Qd2 {[%clk 0:02:58]}  b5 {[%clk 0:03:02]} 7. g4 {[%clk 0:02:56]}  Nbd7 {[%clk 0:02:56]} 8. h4 {[%clk 0:02:49]}  Nb6 {[%clk 0:02:53]} 9. O-O-O {[%clk 0:02:37]}  b4 {[%clk 0:02:50]} 10. Nb1 {[%clk 0:02:37]}  a5 {[%clk 0:02:48]} 11. h5 {[%clk 0:02:36]}  d5 {[%clk 0:02:35]} 12. e5 {[%clk 0:02:24]}  Nfd7 {[%clk 0:02:34]} 13. f4 {[%clk 0:02:12]}  Nc4 {[%clk 0:02:30]} 14. Qe1 {[%clk 0:01:58]}  Ndb6 {[%clk 0:02:21]} 15. Bh3 {[%clk 0:01:45]}  e6 {[%clk 0:02:02]} 16. Nd2 {[%clk 0:01:30]}  a4 {[%clk 0:01:57]} 17. Kb1 {[%clk 0:01:15]}  b3 {[%clk 0:01:33]} 18. cxb3 {[%clk 0:01:07]}  Nxd2+ {[%clk 0:01:27]} 19. Bxd2 {[%clk 0:00:53]}  axb3 {[%clk 0:01:27]} 20. a3 {[%clk 0:00:51]}  Nc4 {[%clk 0:01:10]} 21. Bb4 {[%clk 0:00:48]}  Qb6 {[%clk 0:00:58]} 22. Nf3 {[%clk 0:00:39]}  Bf8 {[%clk 0:00:58]} 23. Bxf8 {[%clk 0:00:24]}  Rxf8 {[%clk 0:00:55]} 24. hxg6 {[%clk 0:00:20]}  hxg6 {[%clk 0:00:54]} 25. Bf1 {[%clk 0:00:18]}  Rxa3 {[%clk 0:00:26]} 26. bxa3 {[%clk 0:00:16]}  Nxa3+ {[%clk 0:00:25]} 27. Kb2 {[%clk 0:00:16]}  Nc2 {[%clk 0:00:22]} 28. Qc3 {[%clk 0:00:14]}  Na3 {[%clk 0:00:10]} 29. Qxb3 {[%clk 0:00:12]}  Nb5 {[%clk 0:00:09]} 30. Bxb5 {[%clk 0:00:11]}  cxb5 {[%clk 0:00:10]} 31. Rc1 {[%clk 0:00:10]}  Bd7 {[%clk 0:00:10]} 32. Rc5 {[%clk 0:00:10]}  Qa5 {[%clk 0:00:09]} 33. Rhc1 {[%clk 0:00:10]}  Ke7 {[%clk 0:00:09]} 34. Qc3 {[%clk 0:00:09]}  Qa6 {[%clk 0:00:05]} 35. Rc7 {[%clk 0:00:08]}  Ra8 {[%clk 0:00:05]} 36. Qc5+ {[%clk 0:00:08]}  Ke8 {[%clk 0:00:05]} 37. Kc2 {[%clk 0:00:06]}  Qa2+ {[%clk 0:00:02]} 38. Kd1 {[%clk 0:00:06]}  Qf2 {[%clk 0:00:02]} 39. Ne1 {[%clk 0:00:04]}  Qe3 {[%clk 0:00:00]} 40. Rxd7 {[%clk 0:00:02]} 1-0


[Site "https://www.chess.com"]

[Event "Titled Tuesday Blitz June 20 Early 2023"]
[White "FoxOnTheRun97"]
[Black "Torres Dominguez, David"]
[BlackFideId "2220857"]
[WhiteElo "2534"]
[BlackElo "1999"]
[Result "1-0"]
[Round "1"]
[TimeControl "180+2"]
[Date "2023.06.20"]
[WhiteClock "0:00:44"]
[BlackClock "0:00:00"]
[Board "229"]

1. d4 {[%clk 0:03:00]}  e5 {[%clk 0:03:00]} 2. dxe5 {[%clk 0:03:00]}  d6 {[%clk 0:03:01]} 3. exd6 {[%clk 0:02:57]}  Bxd6 {[%clk 0:03:01]} 4. Nf3 {[%clk 0:02:54]}  Bg4 {[%clk 0:03:02]} 5. g3 {[%clk 0:02:48]}  Qe7 {[%clk 0:03:01]} 6. Bg2 {[%clk 0:02:48]}  Nc6 {[%clk 0:03:02]} 7. O-O {[%clk 0:02:38]}  O-O-O {[%clk 0:03:02]} 8. Nbd2 {[%clk 0:02:33]}  h5 {[%clk 0:03:01]} 9. h4 {[%clk 0:02:12]}  g5 {[%clk 0:02:59]} 10. Nxg5 {[%clk 0:02:07]}  Nh6 {[%clk 0:02:09]} 11. Re1 {[%clk 0:01:37]}  Nd4 {[%clk 0:02:00]} 12. Ndf3 {[%clk 0:01:28]}  Nxf3+ {[%clk 0:01:44]} 13. exf3 {[%clk 0:01:29]}  Be6 {[%clk 0:01:40]} 14. Qe2 {[%clk 0:01:19]}  Rde8 {[%clk 0:01:14]} 15. Nxe6 {[%clk 0:01:12]}  fxe6 {[%clk 0:01:10]} 16. Bg5 {[%clk 0:01:10]}  Qf7 {[%clk 0:01:06]} 17. Qe3 {[%clk 0:01:02]}  Nf5 {[%clk 0:00:54]} 18. Qxa7 {[%clk 0:01:01]}  c6 {[%clk 0:00:20]} 19. f4 {[%clk 0:00:53]}  Kc7 {[%clk 0:00:19]} 20. Qa5+ {[%clk 0:00:50]}  Kb8 {[%clk 0:00:19]} 21. Qb6 {[%clk 0:00:48]}  Bc7 {[%clk 0:00:17]} 22. Qb3 {[%clk 0:00:49]}  Nd4 {[%clk 0:00:16]} 23. Qc3 {[%clk 0:00:47]}  e5 {[%clk 0:00:15]} 24. Rad1 {[%clk 0:00:45]}  Nb5 {[%clk 0:00:13]} 25. Qb3 {[%clk 0:00:44]}  exf4 {[%clk 0:00:11]} 26. Qxf7 {[%clk 0:00:44]}  fxg3 {[%clk 0:00:04]} 27. Rxe8+ {[%clk 0:00:43]}  Rxe8 {[%clk 0:00:00]} 28. Qxe8+ {[%clk 0:00:44]} 1-0


[Site "https://www.chess.com"]

[Event "Titled Tuesday Blitz June 20 Early 2023"]
[White "Semenova, Alina"]
[Black "Karamsetty, Jeevan"]
[WhiteFideId "24113875"]
[BlackFideId "2025337"]
[WhiteElo "1833"]
[BlackElo "2131"]
[Result "0-1"]
[Round "1"]
[TimeControl "180+2"]
[Date "2023.06.20"]
[WhiteClock "0:00:00"]
[BlackClock "0:01:03"]
[Board "230"]

1. e4 {[%clk 0:02:58]}  e5 {[%clk 0:02:59]} 2. Nf3 {[%clk 0:02:59]}  Nc6 {[%clk 0:02:58]} 3. Bb5 {[%clk 0:02:59]}  a6 {[%clk 0:02:58]} 4. Ba4 {[%clk 0:02:59]}  Nf6 {[%clk 0:02:56]} 5. O-O {[%clk 0:02:58]}  Be7 {[%clk 0:02:56]} 6. Re1 {[%clk 0:02:56]}  b5 {[%clk 0:02:57]} 7. Bb3 {[%clk 0:02:57]}  d6 {[%clk 0:02:56]} 8. c3 {[%clk 0:02:57]}  O-O {[%clk 0:02:56]} 9. d4 {[%clk 0:02:57]}  exd4 {[%clk 0:02:57]} 10. cxd4 {[%clk 0:02:58]}  Na5 {[%clk 0:02:55]} 11. Bc2 {[%clk 0:02:50]}  Bb7 {[%clk 0:02:51]} 12. Nc3 {[%clk 0:02:49]}  c5 {[%clk 0:02:47]} 13. d5 {[%clk 0:02:46]}  Nc4 {[%clk 0:02:41]} 14. b3 {[%clk 0:02:39]}  Ne5 {[%clk 0:02:39]} 15. Nxe5 {[%clk 0:02:39]}  dxe5 {[%clk 0:02:40]} 16. Bb2 {[%clk 0:02:39]}  Rc8 {[%clk 0:02:37]} 17. Ne2 {[%clk 0:02:30]}  c4 {[%clk 0:02:33]} 18. Bxe5 {[%clk 0:02:25]}  Bb4 {[%clk 0:02:23]} 19. Rf1 {[%clk 0:02:16]}  Re8 {[%clk 0:02:22]} 20. Bxf6 {[%clk 0:01:52]}  Qxf6 {[%clk 0:02:23]} 21. bxc4 {[%clk 0:01:53]}  Rxc4 {[%clk 0:02:17]} 22. Ng3 {[%clk 0:01:48]}  Bc3 {[%clk 0:02:15]} 23. Rb1 {[%clk 0:01:44]}  Be5 {[%clk 0:02:15]} 24. Bb3 {[%clk 0:01:34]}  Rd4 {[%clk 0:02:11]} 25. Qe2 {[%clk 0:01:31]}  Bxg3 {[%clk 0:02:09]} 26. fxg3 {[%clk 0:01:20]}  Qg6 {[%clk 0:01:50]} 27. d6 {[%clk 0:01:14]}  Rdxe4 {[%clk 0:01:48]} 28. Qd2 {[%clk 0:00:12]}  Re2 {[%clk 0:01:31]} 29. Bxf7+ {[%clk 0:00:08]}  Qxf7 {[%clk 0:01:27]} 30. Qxe2 {[%clk 0:00:03]}  Rxe2 {[%clk 0:01:25]} 31. Rxf7 {[%clk 0:00:03]}  Rxg2+ {[%clk 0:01:21]} 32. Kf1 {[%clk 0:00:02]}  Kxf7 {[%clk 0:01:21]} 33. Rc1 {[%clk 0:00:03]}  Ke6 {[%clk 0:01:09]} 34. d7 {[%clk 0:00:02]}  Kxd7 {[%clk 0:01:04]} 35. Rd1+ {[%clk 0:00:03]}  Kc7 {[%clk 0:01:03]} 36. Rc1+ {[%clk 0:00:00]}  Kb6 {[%clk 0:01:03]} 0-1


[Site "https://www.chess.com"]

[Event "Titled Tuesday Blitz June 20 Early 2023"]
[White "Brunner, Nicolas"]
[Black "Aung Thant Zin"]
[WhiteFideId "620246"]
[BlackFideId "13000063"]
[WhiteElo "2319"]
[BlackElo "2278"]
[Result "0-1"]
[Round "1"]
[TimeControl "180+2"]
[Date "2023.06.20"]
[WhiteClock "0:00:29"]
[BlackClock "0:00:55"]
[Board "231"]

1. Nf3 {[%clk 0:02:59]}  d5 {[%clk 0:02:59]} 2. g3 {[%clk 0:02:59]}  Nf6 {[%clk 0:02:59]} 3. Bg2 {[%clk 0:02:59]}  e6 {[%clk 0:03:00]} 4. O-O {[%clk 0:02:58]}  Be7 {[%clk 0:03:00]} 5. d4 {[%clk 0:02:58]}  O-O {[%clk 0:03:00]} 6. c4 {[%clk 0:02:58]}  dxc4 {[%clk 0:02:57]} 7. Qa4 {[%clk 0:02:58]}  a6 {[%clk 0:02:57]} 8. Qxc4 {[%clk 0:02:58]}  b5 {[%clk 0:02:57]} 9. Qc2 {[%clk 0:02:58]}  Bb7 {[%clk 0:02:56]} 10. Bg5 {[%clk 0:02:58]}  Nc6 {[%clk 0:02:46]} 11. Rd1 {[%clk 0:02:55]}  Nb4 {[%clk 0:02:43]} 12. Qc1 {[%clk 0:02:53]}  Qc8 {[%clk 0:02:37]} 13. a3 {[%clk 0:02:51]}  Nbd5 {[%clk 0:02:36]} 14. b4 {[%clk 0:02:44]}  a5 {[%clk 0:02:35]} 15. Bxf6 {[%clk 0:02:36]}  Bxf6 {[%clk 0:02:24]} 16. e4 {[%clk 0:02:33]}  Nb6 {[%clk 0:02:23]} 17. Ne5 {[%clk 0:02:29]}  Bxe5 {[%clk 0:02:14]} 18. dxe5 {[%clk 0:02:28]}  axb4 {[%clk 0:02:15]} 19. Nd2 {[%clk 0:02:22]}  bxa3 {[%clk 0:02:11]} 20. Rxa3 {[%clk 0:02:22]}  Rxa3 {[%clk 0:02:10]} 21. Qxa3 {[%clk 0:02:22]}  c5 {[%clk 0:02:09]} 22. Rc1 {[%clk 0:02:20]}  c4 {[%clk 0:02:05]} 23. Qa5 {[%clk 0:02:18]}  Qc6 {[%clk 0:01:57]} 24. Nb3 {[%clk 0:02:09]}  Ra8 {[%clk 0:01:52]} 25. Qb4 {[%clk 0:02:04]}  Ra4 {[%clk 0:01:37]} 26. Qe7 {[%clk 0:02:04]}  Qd7 {[%clk 0:01:30]} 27. Qxd7 {[%clk 0:01:49]}  Nxd7 {[%clk 0:01:29]} 28. Nd4 {[%clk 0:01:49]}  Ba6 {[%clk 0:01:25]} 29. Nc6 {[%clk 0:01:43]}  g6 {[%clk 0:01:17]} 30. Rd1 {[%clk 0:01:38]}  Nc5 {[%clk 0:01:14]} 31. Rd8+ {[%clk 0:01:34]}  Kg7 {[%clk 0:01:14]} 32. h4 {[%clk 0:01:23]}  Bb7 {[%clk 0:01:06]} 33. Ne7 {[%clk 0:01:17]}  Bxe4 {[%clk 0:01:06]} 34. g4 {[%clk 0:01:15]}  h6 {[%clk 0:01:01]} 35. Rc8 {[%clk 0:01:10]}  Bxg2 {[%clk 0:00:59]} 36. Rxc5 {[%clk 0:01:10]}  Bd5 {[%clk 0:00:56]} 37. Rxb5 {[%clk 0:01:08]}  c3 {[%clk 0:00:56]} 38. Rc5 {[%clk 0:00:29]}  Rc4 {[%clk 0:00:55]} 0-1


[Site "https://www.chess.com"]

[Event "Titled Tuesday Blitz June 20 Early 2023"]
[White "Yaniuk, Volodymyr"]
[Black "Better_Chess_Faster"]
[WhiteFideId "14133083"]
[WhiteElo "2141"]
[BlackElo "2008"]
[Result "1-0"]
[Round "1"]
[TimeControl "180+2"]
[Date "2023.06.20"]
[WhiteClock "0:01:01"]
[BlackClock "0:00:00"]
[Board "233"]

1. c4 {[%clk 0:02:57]}  c5 {[%clk 0:02:55]} 2. Nf3 {[%clk 0:02:56]}  Nf6 {[%clk 0:02:54]} 3. Nc3 {[%clk 0:02:57]}  Nc6 {[%clk 0:02:53]} 4. e3 {[%clk 0:02:57]}  e6 {[%clk 0:02:51]} 5. d4 {[%clk 0:02:56]}  cxd4 {[%clk 0:02:51]} 6. Nxd4 {[%clk 0:02:54]}  d5 {[%clk 0:02:51]} 7. cxd5 {[%clk 0:02:54]}  exd5 {[%clk 0:02:51]} 8. Bb5 {[%clk 0:02:54]}  Bd7 {[%clk 0:02:50]} 9. O-O {[%clk 0:02:53]}  Bd6 {[%clk 0:02:47]} 10. Be2 {[%clk 0:02:49]}  O-O {[%clk 0:02:37]} 11. b3 {[%clk 0:02:47]}  a6 {[%clk 0:02:34]} 12. Bb2 {[%clk 0:02:47]}  Re8 {[%clk 0:02:32]} 13. Nxc6 {[%clk 0:02:45]}  Bxc6 {[%clk 0:02:27]} 14. Bf3 {[%clk 0:02:44]}  Be5 {[%clk 0:02:23]} 15. Rc1 {[%clk 0:02:21]}  Rc8 {[%clk 0:02:21]} 16. Qd2 {[%clk 0:02:16]}  Qd6 {[%clk 0:02:15]} 17. h3 {[%clk 0:02:07]}  Red8 {[%clk 0:02:08]} 18. Ne2 {[%clk 0:01:58]}  Bxb2 {[%clk 0:02:07]} 19. Qxb2 {[%clk 0:01:58]}  Bb5 {[%clk 0:02:04]} 20. Rfd1 {[%clk 0:01:55]}  Bxe2 {[%clk 0:02:02]} 21. Qxe2 {[%clk 0:01:49]}  Rxc1 {[%clk 0:01:58]} 22. Rxc1 {[%clk 0:01:50]}  Qe5 {[%clk 0:01:55]} 23. Qd2 {[%clk 0:01:45]}  Ne4 {[%clk 0:01:53]} 24. Qc2 {[%clk 0:01:40]}  h6 {[%clk 0:01:50]} 25. Qc7 {[%clk 0:01:35]}  Qxc7 {[%clk 0:01:34]} 26. Rxc7 {[%clk 0:01:36]}  Rb8 {[%clk 0:01:18]} 27. Bxe4 {[%clk 0:01:29]}  dxe4 {[%clk 0:01:17]} 28. Kf1 {[%clk 0:01:26]}  Kf8 {[%clk 0:01:12]} 29. Ke2 {[%clk 0:01:26]}  b6 {[%clk 0:01:06]} 30. g4 {[%clk 0:01:26]}  g6 {[%clk 0:00:51]} 31. Rc4 {[%clk 0:01:21]}  f5 {[%clk 0:00:50]} 32. gxf5 {[%clk 0:01:22]}  gxf5 {[%clk 0:00:50]} 33. Rc6 {[%clk 0:01:21]}  Kg7 {[%clk 0:00:48]} 34. h4 {[%clk 0:01:22]}  a5 {[%clk 0:00:41]} 35. h5 {[%clk 0:01:16]}  b5 {[%clk 0:00:36]} 36. Rg6+ {[%clk 0:01:15]}  Kh7 {[%clk 0:00:35]} 37. Rf6 {[%clk 0:01:14]}  a4 {[%clk 0:00:34]} 38. Rxf5 {[%clk 0:01:11]}  axb3 {[%clk 0:00:35]} 39. axb3 {[%clk 0:01:12]}  b4 {[%clk 0:00:34]} 40. Re5 {[%clk 0:01:11]}  Rc8 {[%clk 0:00:32]} 41. Rxe4 {[%clk 0:01:10]}  Rc2+ {[%clk 0:00:18]} 42. Kf3 {[%clk 0:01:09]}  Rc3 {[%clk 0:00:18]} 43. Rxb4 {[%clk 0:01:09]}  Kg7 {[%clk 0:00:16]} 44. Rb6 {[%clk 0:01:08]}  Rc5 {[%clk 0:00:14]} 45. Kg4 {[%clk 0:01:01]}  Rg5+ {[%clk 0:00:13]} 46. Kh4 {[%clk 0:01:02]}  Rg2 {[%clk 0:00:13]} 47. f3 {[%clk 0:01:01]}  Re2 {[%clk 0:00:12]} 48. e4 {[%clk 0:01:01]}  Re3 {[%clk 0:00:12]} 49. Kg4 {[%clk 0:01:01]}  Re1 {[%clk 0:00:09]} 50. f4 {[%clk 0:01:00]}  Rg1+ {[%clk 0:00:08]} 51. Kf5 {[%clk 0:01:00]}  Rh1 {[%clk 0:00:09]} 52. Rb7+ {[%clk 0:01:00]}  Kg8 {[%clk 0:00:08]} 53. Kg6 {[%clk 0:01:01]}  Rg1+ {[%clk 0:00:07]} 54. Kxh6 {[%clk 0:01:01]}  Rf1 {[%clk 0:00:06]} 55. Kg6 {[%clk 0:01:01]}  Rg1+ {[%clk 0:00:06]} 56. Kf5 {[%clk 0:01:01]}  Rh1 {[%clk 0:00:06]} 57. Ke6 {[%clk 0:01:00]}  Rxh5 {[%clk 0:00:05]} 58. f5 {[%clk 0:01:00]}  Rh4 {[%clk 0:00:05]} 59. e5 {[%clk 0:01:01]}  Rh6+ {[%clk 0:00:00]} 60. f6 {[%clk 0:01:01]} 1-0


[Site "https://www.chess.com"]